fUST/lending_fUST_20240403
["ID","MTS","AMOUNT","RATE_DAILY","PERIOD"]
[321407610,1712153454425,-2222.32,0.00038356,5]
[321407611,1712153454435,-2222.32,0.00038356,5]
[321407612,1712153454444,-2222.32,0.00038356,5]
[321407613,1712153454456,-500.0,0.00038356,5]
[321407614,1712153454465,-2222.32,0.00038356,5]
[321407615,1712153454474,-500.0,0.00038356,5]
[321407616,1712153454484,-500.0,0.00038356,5]
[321407617,1712153454494,-2222.32,0.00038356,5]
[321407618,1712153454503,-500.0,0.00038356,5]
[321407619,1712153454513,-2222.32,0.00038356,5]
[321407620,1712153454521,-500.0,0.00038356,5]
[321407621,1712153454531,-2222.32,0.00038356,5]
[321407622,1712153454540,-500.0,0.00038356,5]
[321407623,1712153454549,-509.36643231,0.00038356,5]
[321407624,1712153454558,-2222.32,0.00038356,5]
[321407625,1712153454567,-2222.32,0.00038356,5]
[321407626,1712153454576,-2222.32,0.00038356,5]
[321407627,1712153454586,-2222.32,0.00038356,5]
[321407628,1712153454595,-2222.32,0.00038356,5]
[321407629,1712153454604,-446.03193224,0.00038356,5]
[321407630,1712153454613,-2222.32,0.00038356,5]
[321407631,1712153454622,-2222.32,0.00038356,5]
[321407632,1712153454631,-2222.32,0.00038356,5]
[321407633,1712153454640,-2222.53081377,0.00038356,5]
[321407634,1712153454649,-500.0,0.00038356,5]
[321407635,1712153454658,-500.0,0.00038356,5]
[321407636,1712153454668,-500.0,0.00038356,5]
[321407637,1712153454677,-500.0,0.00038356,5]
[321407638,1712153454686,-455.57434776,0.00038356,5]
[321407639,1712153454696,-500.0,0.00038356,5]
[321407640,1712153454706,-500.0,0.00038356,5]
[321407641,1712153454716,-500.0,0.00038356,5]
[321407642,1712153454726,-500.0,0.00038356,5]
[321407643,1712153454735,-500.0,0.00038356,5]
[321407644,1712153454744,-500.0,0.00038356,5]
[321407645,1712153454753,-500.0,0.00038356,5]
[321407646,1712153454762,-500.0,0.00038356,5]
[321407647,1712153454771,-500.0,0.00038356,5]
[321407648,1712153454780,-500.0,0.00038356,5]
[321407649,1712153454790,-500.0,0.00038356,5]
[321407650,1712153454799,-500.0,0.00038356,5]
[321407651,1712153454809,-500.0,0.00038356,5]
[321407652,1712153454818,-488.87790744,0.00038356,5]
[321407653,1712153454828,-500.0,0.00038356,5]
[321407654,1712153454837,-500.0,0.00038356,5]
[321407655,1712153454846,-500.0,0.00038356,5]
[321407656,1712153454855,-500.0,0.00038356,5]
[321407657,1712153454865,-500.0,0.00038356,5]
[321407658,1712153454874,-500.0,0.00038356,5]
[321407659,1712153454883,-500.0,0.00038356,5]
[321407660,1712153454892,-500.0,0.00038356,5]
[321407661,1712153454901,-500.0,0.00038356,5]
[321407662,1712153454910,-500.0,0.00038356,5]
[321407663,1712153454919,-500.0,0.00038356,5]
[321407664,1712153454928,-490.74276873,0.00038356,5]
[321407665,1712153454938,-158.84900646,0.00038356,5]
[321407666,1712153454947,-629.35298753,0.00038356,5]
[321407667,1712153454957,-171.30619015,0.00038356,5]
[321407668,1712153454966,-6673.53,0.00038356,5]
[321407669,1712153454975,-6673.53,0.00038356,5]
[321407670,1712153454984,-6673.53,0.00038356,5]
[321407671,1712153454993,-6673.53,0.00038356,5]
[321407672,1712153455001,-6673.53,0.00038356,5]
[321407673,1712153455010,-6673.53,0.00038356,5]
[321407674,1712153455019,-6673.53,0.00038356,5]
[321407675,1712153455028,-6673.53,0.00038356,5]
[321407676,1712153455038,-6673.53,0.00038356,5]
[321407677,1712153455047,-6673.53,0.00038356,5]
[321407678,1712153455056,-6673.53,0.00038356,5]
[321407679,1712153455066,-6673.53,0.00038356,5]
[321407680,1712153455075,-6673.53,0.00038356,5]
[321407681,1712153455084,-6673.53,0.00038356,5]
[321407682,1712153455093,-500.0,0.00038356,5]
[321407683,1712153455102,-6673.53,0.00038356,5]
[321407684,1712153455111,-229.21566845,0.00038356,5]
[321407685,1712153455121,-6673.53,0.00038356,5]
[321407686,1712153455131,-6673.53,0.00038356,5]
[321407687,1712153455139,-6673.53,0.00038356,5]
[321407688,1712153455148,-6673.53,0.00038356,5]
[321407689,1712153455158,-6673.53,0.00038356,5]
[321407690,1712153455167,-6673.53,0.00038356,5]
[321407691,1712153455176,-6673.53,0.00038356,5]
[321407692,1712153455185,-6673.53,0.00038356,5]
[321407693,1712153455194,-6673.73321205,0.00038356,5]
[321407694,1712153455205,-500.0,0.00038356,5]
[321407695,1712153455215,-505.15955317,0.00038356,5]
[321407696,1712153455225,-500.0,0.00038356,5]
[321407697,1712153455234,-500.0,0.00038356,5]
[321407698,1712153455244,-597.18221514,0.00038356,5]
[321407699,1712153455253,-500.0,0.00038356,2]
[321407700,1712153455263,-500.0,0.00038356,5]
[321407701,1712153455272,-500.0,0.00038356,5]
[321407702,1712153455281,-500.0,0.00038356,5]
[321407703,1712153455290,-500.0,0.00038356,5]
[321407704,1712153455301,-500.0,0.00038356,5]
[321407705,1712153455312,-500.0,0.00038356,5]
[321407706,1712153455322,-500.0,0.00038356,5]
[321407707,1712153455331,-500.0,0.00038356,5]
[321407708,1712153455341,-500.0,0.00038356,5]
[321407709,1712153455351,-500.0,0.00038356,5]
[321407710,1712153455360,-500.0,0.00038356,5]
[321407711,1712153455370,-500.0,0.00038356,5]
[321407712,1712153455379,-500.0,0.00038356,5]
[321407713,1712153455389,-500.0,0.00038356,5]
[321407714,1712153455398,-500.0,0.00038356,5]
[321407715,1712153455408,-500.0,0.00038356,5]
[321407716,1712153455417,-500.0,0.00038356,5]
[321407717,1712153455427,-500.0,0.00038356,5]
[321407718,1712153455436,-500.0,0.00038356,5]
[321407719,1712153455445,-264.43721074,0.00038356,5]
[321407720,1712153455456,-500.0,0.00038356,5]
[321407721,1712153455465,-500.0,0.00038356,5]
[321407722,1712153455475,-543.58681633,0.00038356,5]
[321407723,1712153455484,-500.0,0.00038356,5]
[321407724,1712153455493,-500.0,0.00038356,5]
[321407725,1712153455503,-500.0,0.00038356,5]
[321407726,1712153455512,-178.5737379,0.00038356,5]
[321407727,1712153455521,-466.25831786,0.00038356,5]
[321407728,1712153455530,-500.0,0.00038356,5]
[321407729,1712153455540,-500.0,0.00038356,5]
[321407730,1712153455549,-170.20915654,0.00038356,5]
[321407731,1712153455559,-500.0,0.00038356,5]
[321407732,1712153455570,-500.0,0.00038356,5]
[321407733,1712153455580,-500.0,0.00038356,5]
[321407734,1712153455590,-500.0,0.00038356,5]
[321407735,1712153455599,-500.0,0.00038356,5]
[321407736,1712153455608,-500.0,0.00038356,5]
[321407737,1712153455617,-500.0,0.00038356,5]
[321407738,1712153455627,-500.0,0.00038356,5]
[321407739,1712153455635,-500.0,0.00038356,5]
[321407740,1712153455644,-500.0,0.00038356,5]
[321407741,1712153455654,-500.0,0.00038356,5]
[321407742,1712153455663,-568.53896543,0.00038356,5]
[321407743,1712153455673,-500.0,0.00038356,5]
[321407744,1712153455682,-500.0,0.00038356,5]
[321407745,1712153455691,-500.0,0.00038356,5]
[321407746,1712153455702,-500.0,0.00038356,5]
[321407747,1712153455712,-500.0,0.00038356,5]
[321407748,1712153455722,-500.0,0.00038356,5]
[321407749,1712153455731,-500.0,0.00038356,5]
[321407750,1712153455740,-157.43197914,0.00038356,5]
[321407751,1712153455749,-11537.46,0.00038356,5]
[321407752,1712153455758,-11537.46,0.00038356,5]
[321407753,1712153455766,-5000.0,0.00038356,6]
[321407754,1712153455775,-11537.46,0.00038356,5]
[321407755,1712153455785,-5000.0,0.00038356,6]
[321407756,1712153455793,-11537.46,0.00038356,5]
[321407757,1712153455803,-5000.0,0.00038356,6]
[321407758,1712153455812,-11537.46,0.00038356,5]
[321407759,1712153455846,-5000.0,0.00038356,6]
[321407760,1712153455857,-11537.46,0.00038356,5]
[321407761,1712153455868,-1922.09,0.00038356,5]
[321407762,1712153455878,-5000.0,0.00038356,6]
[321407763,1712153455888,-406.93614227,0.00038356,5]
[321407764,1712153455897,-11537.46,0.00038356,5]
[321407765,1712153455907,-1922.09,0.00038356,5]
[321407766,1712153455916,-5000.0,0.00038356,6]
[321407767,1712153455925,-11537.46,0.00038356,5]
[321407768,1712153455935,-5000.0,0.00038356,6]
[321407769,1712153455944,-1922.09,0.00038356,5]
[321407770,1712153455953,-11537.46,0.00038356,5]
[321407771,1712153455962,-11537.46,0.00038356,5]
[321407772,1712153455971,-1922.09,0.00038356,5]
[321407773,1712153455980,-1922.09,0.00038356,5]
[321407774,1712153455989,-11537.46,0.00038356,5]
[321407775,1712153455999,-1922.09,0.00038356,5]
[321407776,1712153456008,-11537.46,0.00038356,5]
[321407777,1712153456017,-2633.17,0.00038356,5]
[321407778,1712153456027,-1922.09,0.00038356,5]
[321407779,1712153456036,-11537.46,0.00038356,5]
[321407780,1712153456046,-1922.09,0.00038356,5]
[321407781,1712153456055,-2633.17,0.00038356,5]
[321407782,1712153456065,-11537.46,0.00038356,5]
[321407783,1712153456075,-1922.09,0.00038356,5]
[321407784,1712153456084,-2633.17,0.00038356,5]
[321407785,1712153456093,-11537.46,0.00038356,5]
[321407786,1712153456102,-1922.09,0.00038356,5]
[321407787,1712153456111,-2633.17,0.00038356,5]
[321407788,1712153456121,-11537.46,0.00038356,5]
[321407789,1712153456130,-1922.09,0.00038356,5]
[321407790,1712153456139,-11537.46,0.00038356,5]
[321407791,1712153456148,-2633.17,0.00038356,5]
[321407792,1712153456160,-1922.09,0.00038356,5]
[321407793,1712153456170,-1922.09,0.00038356,5]
[321407794,1712153456181,-2633.17,0.00038356,5]
[321407795,1712153456190,-1922.09,0.00038356,5]
[321407796,1712153456201,-2633.17,0.00038356,5]
[321407797,1712153456210,-1922.09,0.00038356,5]
[321407798,1712153456219,-500.0,0.00038356,5]
[321407799,1712153456228,-2633.17,0.00038356,5]
[321407800,1712153456238,-1922.09,0.00038356,5]
[321407801,1712153456248,-500.0,0.00038356,5]
[321407802,1712153456259,-2633.17,0.00038356,5]
[321407803,1712153456269,-1922.09,0.00038356,5]
[321407804,1712153456279,-500.0,0.00038356,5]
[321407805,1712153456288,-2633.17,0.00038356,5]
[321407806,1712153456297,-1922.09,0.00038356,5]
[321407807,1712153456306,-500.0,0.00038356,5]
[321407808,1712153456318,-2633.17,0.00038356,5]
[321407809,1712153456328,-1922.09,0.00038356,5]
[321407810,1712153456337,-500.0,0.00038356,5]
[321407811,1712153456348,-2633.17,0.00038356,5]
[321407812,1712153456359,-1922.09,0.00038356,5]
[321407813,1712153456368,-11537.46,0.00038356,5]
[321407814,1712153456377,-2633.17,0.00038356,5]
[321407815,1712153456387,-500.0,0.00038356,5]
[321407816,1712153456397,-1922.09,0.00038356,5]
[321407817,1712153456406,-11537.46,0.00038356,5]
[321407818,1712153456415,-500.0,0.00038356,5]
[321407819,1712153456424,-1922.09,0.00038356,5]
[321407820,1712153456434,-11537.46,0.00038356,5]
[321407821,1712153456444,-500.0,0.00038356,5]
[321407822,1712153456456,-2633.17,0.00038356,5]
[321407823,1712153456466,-1922.09,0.00038356,5]
[321407824,1712153456476,-11537.46,0.00038356,5]
[321407825,1712153456486,-500.0,0.00038356,5]
[321407826,1712153456496,-2633.17,0.00038356,5]
[321407827,1712153456505,-1922.2423087,0.00038356,5]
[321407828,1712153456514,-11537.46,0.00038356,5]
[321407829,1712153456523,-2633.17,0.00038356,5]
[321407830,1712153456532,-500.0,0.00038356,5]
[321407831,1712153456541,-11537.46,0.00038356,5]
[321407832,1712153456550,-500.0,0.00038356,5]
[321407833,1712153456559,-2633.17,0.00038356,5]
[321407834,1712153456568,-11537.57390048,0.00038356,5]
[321407835,1712153456577,-2633.17,0.00038356,5]
[321407836,1712153456586,-500.0,0.00038356,5]
[321407837,1712153456595,-500.0,0.00038356,5]
[321407838,1712153456604,-500.0,0.00038356,5]
[321407839,1712153456613,-2633.17,0.00038356,5]
[321407840,1712153456622,-500.0,0.00038356,5]
[321407841,1712153456631,-2633.17,0.00038356,5]
[321407842,1712153456640,-2633.17,0.00038356,5]
[321407843,1712153456649,-500.0,0.00038356,5]
[321407844,1712153456659,-2633.17,0.00038356,5]
[321407845,1712153456668,-500.0,0.00038356,5]
[321407846,1712153456678,-2633.17,0.00038356,5]
[321407847,1712153456687,-500.0,0.00038356,5]
[321407848,1712153456696,-2633.26594732,0.00038356,5]
[321407849,1712153456707,-421.43998965,0.00038356,5]
[321407850,1712153456716,-500.0,0.00038356,5]
[321407851,1712153456726,-514.54635557,0.00038356,5]
[321407852,1712153456735,-3953.09,0.00038356,5]
[321407853,1712153456744,-3953.09,0.00038356,5]
[321407854,1712153456754,-3953.09,0.00038356,5]
[321407855,1712153456764,-158.76222105,0.00038361,7]
[321407856,1712153456774,-153.0,0.00038407,2]
[321407857,1712153456783,-500.0,0.0003841,2]
[321407858,1712153456793,-500.0,0.00038465,2]
[321407859,1712153456802,-7999.26829183,0.000385,8]
[321407860,1712153456812,-500.0,0.0003852,2]
[321407861,1712153456821,-500.0,0.00038575,2]
[321407862,1712153456832,-222.20456984,0.00038576,7]
[321407863,1712153456841,-389.89010704,0.0003863,2]
[321407864,1712153456851,-13451.999999,0.00038799,2]
[321407865,1712153456862,-2151.77434858,0.00038799,2]
[321407866,1712153456871,-9521.02999669,0.00038799,2]
[321407867,1712153456882,-687.56794404,0.00038799,2]
[321407868,1712153456892,-7204.24287107,0.00038799,2]
[321407869,1712153456902,-264.42728768,0.00038799,2]
[321407870,1712153456912,-622.43556005,0.00038799,2]
[321407871,1712153456922,-4009.95911609,0.00038799,2]
[321407872,1712153456932,-1003.69686541,0.00038799,2]
[321407873,1712153456942,-573.13672784,0.00038799,2]
[321407874,1712153456952,-1500.06,0.00038799,2]
[321407875,1712153456962,-720.6511446,0.000388,120]
[321407876,1712153456971,-1217.35,0.00038836,30]
[321407877,1712153456981,-10000.0,0.00038853,30]
[321407878,1712153456991,-10000.0,0.00038853,30]
[321407879,1712153457001,-154.98450155,0.0003889,7]
[321407880,1712153457011,-298861.41340744,0.0003891,2]
[321407881,1712153457020,-153.0,0.00038952,2]
[321407882,1712153457030,-926.86095111,0.00039,4]
[321407883,1712153457040,-319.06747655,0.00039,30]
[321407884,1712153457049,-5377.46862467,0.00039,15]
[321407885,1712153457059,-1000.0,0.00039,2]
[321407886,1712153457068,-150.13803642,0.00039084,7]
[321407887,1712153457078,-152.76127004,0.00039196,7]
[321407888,1712153457087,-306.0,0.00039229,2]
[321407889,1712153457098,-153.0,0.00039274,2]
[321407890,1712153457108,-5000.0,0.0003931,2]
[321407891,1712153457117,-150.13803642,0.0003934,7]
[321407892,1712153457127,-150.0,0.00039355,2]
[321407893,1712153457136,-300.0,0.000395,20]
[321407894,1712153457146,-303.0,0.0003969,60]
[321407895,1712153457155,-301.0,0.0003969,60]
[321407896,1712153457165,-300.0,0.0003969,60]
[321407897,1712153457174,-271.05846487,0.00039724,4]
[321407898,1712153457184,-155.18037566,0.00039724,4]
[321407899,1712153457194,-731.21448504,0.00039725,4]
[321407900,1712153457205,-157.00065209,0.00039726,30]
[321407901,1712153457214,-448.06223413,0.00039726,2]
[321407902,1712153457223,-11478.47488437,0.00039726,4]
[321407903,1712153457232,-158.76222105,0.00039831,7]
[321407904,1712153457241,-200.60993202,0.0004,2]
[321407905,1712153457251,-6370.77207036,0.0004,30]
[321407906,1712153457260,-500.00942297,0.0004,2]
[321407907,1712153457269,-167.28733665,0.0004,4]
[321407908,1712153457278,-1355.78966209,0.0004,2]
[321407909,1712153457288,-200.0,0.0004,120]
[321407910,1712153457299,-2104.21026737,0.0004,7]
[321407911,1712153457309,-893.70623337,0.0004,120]
[321407912,1712153457319,-2049.58814013,0.0004,120]
[321407913,1712153457329,-169.713674,0.0004,2]
[321407914,1712153457339,-166.6147683,0.0004,2]
[321407915,1712153457348,-200.0,0.0004,2]
[321407916,1712153457357,-368.204256,0.00040047,2]
[321407917,1712153457366,-343.65521,0.000403,2]
[321407918,1712153457376,-2000.0,0.000403,2]
[321407919,1712153457386,-500.0,0.000403,2]
[321407920,1712153457396,-1175.319402,0.000403,2]
[321407921,1712153457406,-2000.0,0.000403,2]
[321407922,1712153457415,-150.0,0.00040355,2]
[321407923,1712153457425,-158.76222105,0.00040746,30]
[321407924,1712153457434,-6988.11749688,0.0004075,2]
[321407925,1712153457444,-158.76222105,0.00040825,30]
[321407926,1712153457454,-150.13803642,0.00040895,30]
[321407927,1712153457464,-159.23567415,0.00040957,4]
[321407928,1712153457473,-5055.0,0.00041,30]
[321407929,1712153457483,-2000.0,0.00041,30]
[321407930,1712153457493,-300.0,0.00041,21]
[321407931,1712153457502,-2430.628602,0.0004101,30]
[321407932,1712153457511,-200.0,0.00041013,120]
[321407933,1712153457521,-1113.10501559,0.00041095,120]
[321407934,1712153457531,-177.2617983,0.00041096,2]
[321407935,1712153457540,-166.666666,0.00041096,2]
[321407936,1712153457550,-571.99140759,0.00041096,31]
[321407937,1712153457560,-245.13917468,0.00041096,31]
[321407938,1712153457569,-354.399416,0.00041096,31]
[321407939,1712153457578,-500.0,0.00041096,31]
[321407940,1712153457588,-1000.0,0.00041099,120]
[321407941,1712153457597,-160.0,0.00041295,3]
[321407942,1712153457606,-200.0,0.00041305,120]
[321407943,1712153457616,-160.0,0.00041494,4]
[321407944,1712153457625,-150.13803642,0.00041522,30]
[321407945,1712153457635,-160.0,0.00041693,5]
[321407946,1712153457644,-152.76127004,0.00041703,30]
[321407947,1712153457653,-160.0,0.00041893,6]
[321407948,1712153457663,-155.32777823,0.00041893,4]
[321407949,1712153457672,-155.99996299,0.00041893,4]
[321407950,1712153457682,-203.36238409,0.0004199,4]
[321407951,1712153457691,-150.13803642,0.00042015,30]
[321407952,1712153457701,-166.666666,0.00042058,2]
[321407953,1712153457711,-160.0,0.00042092,7]
[321407954,1712153457720,-200.0,0.00042207,4]
[321407955,1712153457730,-158.02404524,0.00042207,4]
[321407956,1712153457739,-204.85640812,0.00042207,4]
[321407957,1712153457749,-156.2152794,0.00042207,4]
[321407958,1712153457758,-150.13803642,0.00042291,30]
[321407959,1712153457767,-160.0,0.00042291,8]
[321407960,1712153457776,-1628.35542848,0.000424,120]
[321407961,1712153457786,-160.0,0.0004249,9]
[321407962,1712153457795,-300.0,0.000425,22]
[321407963,1712153457804,-153.0,0.00042513,2]
[321407964,1712153457813,-153.0,0.00042513,2]
[321407965,1712153457823,-153.0,0.00042513,2]
[321407966,1712153457832,-153.0,0.00042513,2]
[321407967,1712153457841,-153.0,0.00042513,2]
[321407968,1712153457850,-153.0,0.00042513,2]
[321407969,1712153457859,-153.0,0.00042513,2]
[321407970,1712153457869,-153.0,0.00042513,2]
[321407971,1712153457878,-153.0,0.00042513,2]
[321407972,1712153457887,-153.0,0.00042513,2]
[321407973,1712153457897,-153.0,0.00042513,2]
[321407974,1712153457906,-153.0,0.00042513,2]
[321407975,1712153457915,-153.0,0.00042513,2]
[321407976,1712153457925,-153.0,0.00042513,2]
[321407977,1712153457934,-153.0,0.00042513,2]
[321407978,1712153457944,-153.0,0.00042513,2]
[321407979,1712153457954,-152.76127004,0.00042583,30]
[321407980,1712153457963,-160.0,0.0004269,10]
[321407981,1712153457972,-160.0,0.00042889,11]
[321407982,1712153457984,-851.053033,0.00042956,120]
[321407983,1712153457995,-166.666666,0.00043019,2]
[321407984,1712153458005,-160.0,0.00043088,12]
[321407985,1712153458015,-200.0,0.00043115,120]
[321407986,1712153458026,-160.0,0.00043287,13]
[321407987,1712153458037,-153.0,0.00043335,2]
[321407988,1712153458048,-153.0,0.00043335,2]
[321407989,1712153458057,-153.0,0.00043335,2]
[321407990,1712153458066,-215.9379195,0.00043335,2]
[321407991,1712153458075,-153.0,0.00043335,2]
[321407992,1712153458085,-160.0,0.00043487,14]
[321407993,1712153458094,-151.02114296,0.00043513,2]
[321407994,1712153458103,-250.52595363,0.00043513,2]
[321407995,1712153458113,-160.0,0.00043686,15]
[321407996,1712153458122,-168.33333333,0.00043706,30]
[321407997,1712153458131,-160.0,0.00043885,16]
[321407998,1712153458141,-150.13803642,0.00043971,30]
[321407999,1712153458151,-166.666666,0.00043981,2]
[321408000,1712153458161,-311.248409,0.00044,23]
[321408001,1712153458171,-160.0,0.00044085,17]
[321408002,1712153458181,-302.04228592,0.00044245,4]
[321408003,1712153458191,-160.0,0.00044284,18]
[321408004,1712153458202,-152.76127004,0.00044308,30]
[321408005,1712153458211,-150.13803642,0.00044482,30]
[321408006,1712153458221,-160.0,0.00044483,19]
[321408007,1712153458230,-158.76222105,0.00044504,30]
[321408008,1712153458239,-150.13803642,0.00044681,30]
[321408009,1712153458248,-160.0,0.00044682,20]
[321408010,1712153458258,-150.22087483,0.00044697,30]
[321408011,1712153458268,-160.0,0.00044882,21]
[321408012,1712153458278,-10000.0,0.000449,120]
[321408013,1712153458289,-166.666666,0.00044942,2]
[321408014,1712153458299,-604.08457184,0.00044988,7]
[321408015,1712153458312,-74354.43453986,0.00044999,3]
[321408016,1712153458323,-325928.67077788,0.00045,30]
[321408017,1712153458332,-1023.4295919,0.00045,120]
[321408018,1712153458341,-6684.81972305,0.00045,30]
[321408019,1712153458350,-992.56823356,0.00045,120]
[321408020,1712153458359,-154.98450155,0.00045,4]
[321408021,1712153458368,-160.0,0.00045081,22]
[321408022,1712153458378,-200.0,0.00045105,2]
[321408023,1712153458388,-150.13803642,0.00045203,30]
[321408024,1712153458397,-160.0,0.0004528,23]
[321408025,1712153458406,-150.13803642,0.00045358,30]
[321408026,1712153458415,-160.0,0.00045479,24]
[321408027,1712153458425,-152.76127004,0.00045662,30]
[321408028,1712153458434,-160.0,0.00045679,25]
[321408029,1712153458444,-167.01730242,0.00045744,4]
[321408030,1712153458454,-152.76127004,0.0004576,30]
[321408031,1712153458464,-160.0,0.00045878,26]
[321408032,1712153458473,-166.666666,0.00045904,2]
[321408033,1712153458483,-152.76127004,0.00045976,30]
[321408034,1712153458582,-160.0,0.00046077,27]
[321408035,1712153458591,-1208.16914368,0.00046127,30]
[321408036,1712153458600,-306.0,0.00046164,2]
[321408037,1712153458608,-345.0881675,0.00046164,2]
[321408038,1712153458617,-150.13803642,0.0004622,30]
[321408039,1712153458626,-160.0,0.00046276,28]
[321408040,1712153458635,-168.33333333,0.00046297,30]
[321408041,1712153458643,-152.76127004,0.00046462,30]
[321408042,1712153458652,-160.0,0.00046476,29]
[321408043,1712153458661,-160.0,0.00046675,30]
[321408044,1712153458670,-150.13803642,0.00046707,30]
[321408045,1712153458678,-150.13803642,0.00046791,30]
[321408046,1712153458687,-158.76222105,0.00046844,30]
[321408047,1712153458696,-160.0,0.00046874,31]
[321408048,1712153458706,-150.13803642,0.00046916,30]
[321408049,1712153458715,-82173.76975619,0.0004698,120]
[321408050,1712153458723,-165.0,0.00047,90]
[321408051,1712153458732,-160.0,0.00047073,32]
[321408052,1712153458741,-160.0,0.00047273,33]
[321408053,1712153458750,-160.0,0.00047472,34]
[321408054,1712153458758,-160.0,0.00047671,35]
[321408055,1712153458767,-203.56828911,0.00047671,5]
[321408056,1712153458776,-172000.0,0.000479,30]
[321408057,1712153458785,-600.0,0.00048,120]
[321408058,1712153458794,-12299.88812243,0.00048,120]
[321408059,1712153458802,-150.13803642,0.00048126,30]
[321408060,1712153458812,-152.76127004,0.00048176,30]
[321408061,1712153458821,-152.76127004,0.00048498,30]
[321408062,1712153458830,-158.76222105,0.00048572,30]
[321408063,1712153458840,-169.713674,0.00048817,2]
[321408064,1712153458849,-156.71110919,0.00048853,30]
[321408065,1712153458859,-165.0,0.00048904,90]
[321408066,1712153458868,-3362.55545251,0.00049,120]
[321408067,1712153458878,-3055.04736161,0.00049,120]
[321408068,1712153458887,-1009258.95397434,0.00049,30]
[321408069,1712153458896,-2748.377161,0.00049,68]
[321408070,1712153458905,-851.053033,0.00049093,120]
[321408071,1712153458915,-150.13803642,0.00049228,30]
[321408072,1712153458924,-152.76127004,0.00049292,30]
[321408073,1712153458933,-151.0,0.00049315,7]
[321408074,1712153458942,-244.062565,0.00049315,7]
[321408075,1712153458951,-152.76127004,0.00049354,30]
[321408076,1712153458964,-150.13803642,0.00049616,30]
[321408077,1712153458973,-6976.62328069,0.000498,2]
[321408078,1712153458982,-1086.56302336,0.0004987,4]
[321408079,1712153458991,-385.0,0.0004987,35]
[321408080,1712153459002,-385.0,0.0004988,35]
[321408081,1712153459011,-385.0,0.0004989,35]
[321408082,1712153459020,-594.0,0.0004996,35]
[321408083,1712153459029,-594.0,0.0004997,35]
[321408084,1712153459039,-594.0,0.0004998,35]
[321408085,1712153459048,-8499.84054553,0.0005,120]
[321408086,1712153459057,-600.0,0.0005,120]
[321408087,1712153459067,-1106.84239148,0.0005,2]
[321408088,1712153459076,-229.44729651,0.0005,120]
[321408089,1712153459086,-450.0,0.0005,2]
[321408090,1712153459095,-110290.1429439,0.0005,2]
[321408091,1712153459105,-172041.3250847,0.0005,2]
[321408092,1712153459114,-1838.00015558,0.0005,120]
[321408093,1712153459123,-28888.55581053,0.0005,120]
[321408094,1712153459215,-60681.12929096,0.0005,120]
[321408095,1712153459224,-952.54111541,0.0005,60]
[321408096,1712153459234,-2446.38392539,0.0005,7]
[321408097,1712153459243,-44203.60064757,0.0005,2]
[321408098,1712153459252,-200.0,0.00050209,2]
[321408099,1712153459263,-158.76222105,0.00050287,60]
[321408100,1712153459272,-150.13803642,0.00050361,60]
[321408101,1712153459281,-150.13803642,0.00050763,60]
[321408102,1712153459290,-306.0,0.00051233,2]
[321408103,1712153459303,-168.33333334,0.00051628,60]
[321408104,1712153459313,-158.76222105,0.00051802,60]
[321408105,1712153459322,-152.76127004,0.00051957,60]
[321408106,1712153459332,-400.0,0.00052,120]
[321408107,1712153459341,-7286.05251508,0.00052,30]
[321408108,1712153459350,-152.76127004,0.00052318,60]
[321408109,1712153459359,-177.39,0.000526,60]